fUSD/lending_fUSD_20260608
["ID","MTS","AMOUNT","RATE_DAILY","PERIOD"]
[424431858,1780883231000,152.0,0.00010098,7]
[424431859,1780883232000,152.0,0.0003012,120]
[424431869,1780883340000,2000.0,0.00030136,120]
[424431872,1780883398000,407.62,0.00030137,120]
[424431873,1780883406000,285.98,0.00030082,120]
[424431880,1780883431000,-150.0,0.0001051,2]
[424431881,1780883431000,-253.1308847,0.00010667,7]
[424431882,1780883431000,-379.69632708,0.00011294,7]
[424431879,1780883431000,-153.48,0.00010458,2]
[424431895,1780883432000,-394.41714301,0.00012087,2]
[424431901,1780883432000,-150.0,0.00012357,7]
[424431899,1780883432000,-285.98,0.00012329,2]
[424431898,1780883432000,-299.05,0.00012243,2]
[424431897,1780883432000,-350.74,0.00012166,2]
[424431896,1780883432000,-168.3,0.0001211,2]
[424431894,1780883432000,-1257.75191562,0.00012087,2]
[424431893,1780883432000,-400.97149276,0.00012087,2]
[424431884,1780883432000,-299.05,0.0001166,2]
[424431890,1780883432000,-1471.73737794,0.00012087,2]
[424431889,1780883432000,-2997.1295987,0.00012087,2]
[424431888,1780883432000,-299.05,0.00011951,2]
[424431887,1780883432000,-316.96029522,0.0001177,2]
[424431886,1780883432000,-150.0,0.00011769,7]
[424431902,1780883432000,-217.53529897,0.00012357,7]
[424431885,1780883432000,-278.76674123,0.00011769,2]
[424431883,1780883432000,-150.0,0.00011523,2]
[424431892,1780883432000,-788.97247197,0.00012087,2]
[424431900,1780883432000,-215.83393831,0.00012343,2]
[424431907,1780883432000,-171.16201744,0.00012369,2]
[424431908,1780883432000,-500.0,0.00012369,2]
[424431922,1780883432000,-401.89337305,0.0001237,2]
[424431923,1780883432000,-506.479035,0.0001237,2]
[424431921,1780883432000,-693.69606344,0.0001237,2]
[424431920,1780883432000,-1619.83221466,0.0001237,2]
[424431918,1780883432000,-284.60163902,0.0001237,2]
[424431919,1780883432000,-1030.13421599,0.0001237,2]
[424431917,1780883432000,-7695.09131767,0.0001237,2]
[424431914,1780883432000,-488.48416866,0.0001237,2]
[424431903,1780883432000,-306.99916686,0.0001236,2]
[424431913,1780883432000,-3431.78126457,0.0001237,2]
[424431916,1780883432000,-2072.67693804,0.0001237,2]
[424431911,1780883432000,-665106.171165,0.0001237,2]
[424431912,1780883432000,-52430.60467183,0.0001237,2]
[424431910,1780883432000,-941.34259977,0.0001237,2]
[424431905,1780883432000,-500.0,0.00012369,2]
[424431909,1780883432000,-18319.797448,0.0001237,2]
[424431906,1780883432000,-220.33288995,0.00012369,2]
[424431904,1780883432000,-286.05993674,0.00012369,2]
[424431915,1780883432000,-1503.14592439,0.0001237,2]
[424431930,1780883439000,-1343.82,0.0001237,2]
[424431929,1780883439000,-397.55855933,0.0001237,2]
[424431934,1780883439000,-6936.65,0.0001237,2]
[424431932,1780883439000,-42709.74884361,0.0001237,2]
[424431933,1780883439000,-407.86461,0.0001237,2]
[424431931,1780883439000,-646.50864285,0.0001237,2]
[424431938,1780883440000,-719.51218182,0.000123,2]
[424431937,1780883440000,-428.53781818,0.000123,2]
[424431936,1780883440000,-503.33128176,0.000123,2]
[424431944,1780883443000,-4282.94769063,0.0001237,2]
[424431943,1780883443000,-754.85116872,0.0001237,2]
[424431941,1780883443000,-32755.52024341,0.000123,2]
[424431942,1780883443000,-200220.56864833,0.0001237,2]
[424431940,1780883443000,-824.0,0.000123,2]
[424431954,1780883446000,-67982.37060066,0.0001237,2]
[424431957,1780883446000,-3108.26998069,0.0001237,2]
[424431955,1780883446000,-36071.15652477,0.0001237,2]
[424431959,1780883446000,-42360.96185636,0.0001237,2]
[424431958,1780883446000,-295.5,0.0001237,2]
[424431961,1780883446000,-1235.34021761,0.0001237,2]
[424431956,1780883446000,-921.90494244,0.0001237,2]
[424431960,1780883446000,-15293.24403656,0.0001237,2]
[424433469,1780883682000,1000.0,0.0003013,120]
[424433470,1780883693000,1000.0,0.0003013,120]
[424433471,1780883781000,280.82,0.00030126,120]
[424433473,1780883827000,300.0,0.00030127,120]
[424433474,1780883841000,411.93,0.00030137,120]
[424433477,1780883905000,205.97,0.00030137,120]
[424433476,1780883905000,205.96,0.00030137,120]
[424433478,1780883912000,205.96,0.00030137,120]
[424433479,1780883913000,205.97,0.00030137,120]
[424433485,1780883930000,2128.29,0.00030137,120]
[424433486,1780883938000,1064.15,0.00030137,120]
[424433488,1780883968000,532.07,0.00030137,120]
[424433493,1780884386000,153.0,0.00030137,120]
[424433496,1780884462000,861.0,0.00030137,120]
[424433510,1780884631000,-288.75272072,0.00011411,2]
[424433511,1780884631000,-465.09659905,0.00011411,2]
[424433509,1780884631000,-175.37,0.00011409,2]
[424433543,1780884632000,-500.0,0.00012168,2]
[424433533,1780884632000,-500.0,0.00012168,2]
[424433532,1780884632000,-500.0,0.00012168,2]
[424433541,1780884632000,-500.0,0.00012168,2]
[424433530,1780884632000,-638.78349965,0.00012168,2]
[424433529,1780884632000,-319.81341221,0.00012168,2]
[424433526,1780884632000,-500.0,0.00012168,2]
[424433528,1780884632000,-500.0,0.00012168,2]
[424433524,1780884632000,-291.74909323,0.00012168,2]
[424433523,1780884632000,-2000.0,0.00012168,2]
[424433527,1780884632000,-200.24195572,0.00012168,2]
[424433520,1780884632000,-20854.62511941,0.00012113,2]
[424433531,1780884632000,-500.0,0.00012168,2]
[424433521,1780884632000,-273.51938623,0.00012159,2]
[424433519,1780884632000,-199.36,0.00012083,2]
[424433518,1780884632000,-160.0,0.00011738,2]
[424433515,1780884632000,-125.16931977,0.00011675,2]
[424433514,1780884632000,-150.0,0.00011592,2]
[424433516,1780884632000,-33.51068023,0.00011675,2]
[424433517,1780884632000,-1766.46,0.00011712,2]
[424433512,1780884632000,-1098.57068023,0.00011411,2]
[424433513,1780884632000,-199.36,0.00011508,2]
[424433542,1780884632000,-500.0,0.00012168,2]
[424433522,1780884632000,-150.0,0.00012167,2]
[424433544,1780884632000,-500.0,0.00012168,2]
[424433525,1780884632000,-154.23302297,0.00012168,2]
[424433534,1780884632000,-500.0,0.00012168,2]
[424433567,1780884632000,-12869.75997065,0.00012169,2]
[424433565,1780884632000,-500.0,0.00012168,2]
[424433564,1780884632000,-500.0,0.00012168,2]
[424433562,1780884632000,-500.0,0.00012168,2]
[424433551,1780884632000,-500.0,0.00012168,2]
[424433549,1780884632000,-302.90911953,0.00012168,2]
[424433550,1780884632000,-500.0,0.00012168,2]
[424433554,1780884632000,-500.0,0.00012168,2]
[424433555,1780884632000,-500.0,0.00012168,2]
[424433553,1780884632000,-500.0,0.00012168,2]
[424433548,1780884632000,-500.0,0.00012168,2]
[424433552,1780884632000,-500.0,0.00012168,2]
[424433563,1780884632000,-176.18207575,0.00012168,2]
[424433545,1780884632000,-500.0,0.00012168,2]
[424433566,1780884632000,-500.0,0.00012168,2]
[424433538,1780884632000,-500.0,0.00012168,2]
[424433540,1780884632000,-500.0,0.00012168,2]
[424433536,1780884632000,-500.0,0.00012168,2]
[424433535,1780884632000,-500.0,0.00012168,2]
[424433539,1780884632000,-500.0,0.00012168,2]
[424433561,1780884632000,-500.0,0.00012168,2]
[424433546,1780884632000,-500.0,0.00012168,2]
[424433557,1780884632000,-500.0,0.00012168,2]
[424433547,1780884632000,-500.0,0.00012168,2]
[424433559,1780884632000,-500.0,0.00012168,2]
[424433537,1780884632000,-500.0,0.00012168,2]
[424433634,1780884639000,-3884.21439239,0.00012169,2]
[424433633,1780884639000,-1413.16,0.000117,2]
[424433643,1780884639000,-638.04951725,0.00012169,2]
[424433641,1780884639000,-529.02653125,0.00012169,2]
[424433637,1780884639000,-957.92865269,0.00012169,2]
[424433653,1780884639000,-275.66458721,0.00012169,2]
[424433651,1780884639000,-469.73578931,0.00012169,2]
[424433655,1780884639000,-1433.57551699,0.00012169,2]
[424433665,1780884639000,-1154.875,0.00012169,2]
[424433671,1780884639000,-1619.05310382,0.00012169,2]
[424433639,1780884639000,-1900.0,0.00012169,2]
[424433752,1780884640000,-60.70473796,0.00012169,2]
[424433751,1780884640000,-500.0,0.00012168,2]
[424433755,1780884643000,-881.0,0.00012169,2]
[424433760,1780884646000,-765.63611671,0.00012169,2]
[424433759,1780884646000,-5648.33387339,0.00012169,2]
[424433758,1780884646000,-522.78396786,0.00012169,2]
[424433764,1780884841000,266.04,0.00030137,120]
[424433765,1780884864000,239.97417069,0.00024797,120]
[424433766,1780884980000,1000.0,0.00029452,120]
[424433768,1780885166000,15742.0,0.00030136,120]
[424433772,1780885169000,500.0,0.00011229,2]
[424433773,1780885169000,138.04,0.00011229,2]
[424433776,1780885203000,171.58,0.00028973,120]
[424433777,1780885206000,1000.0,0.00030137,120]
[424433778,1780885222000,500.0,0.00030137,120]
[424433779,1780885230000,148.02465649,0.00011269,2]
[424433780,1780885235000,1000.0,0.00030137,120]
[424433782,1780885284000,3272.29685961,0.00028,120]
[424433783,1780885306000,161.0,0.00030137,120]
[424433852,1780885832000,-281.45348428,0.0001089,2]
[424433851,1780885832000,-160.75,0.00010877,2]
[424433867,1780885832000,-255.0,0.00011737,2]
[424433856,1780885832000,-166.28,0.00011047,2]
[424433850,1780885832000,-1449.71,0.00010876,2]
[424433859,1780885832000,-10241.03728971,0.00011269,2]
[424433868,1780885832000,-502.0,0.00011753,2]
[424433869,1780885832000,-638.04,0.0001179,2]
[424433870,1780885832000,-3400.0,0.000118,4]
[424433857,1780885832000,-172.579046,0.00011171,2]
[424433853,1780885832000,-502.54438993,0.0001089,2]
[424433864,1780885832000,-638.04,0.00011509,2]
[424433858,1780885832000,-156.09,0.00011233,2]
[424433855,1780885832000,-150.0,0.00010959,2]
[424433846,1780885832000,-1000.0,0.00010699,2]
[424433844,1780885832000,-150.0,0.00010184,2]
[424433848,1780885832000,-51600.97989557,0.000107,2]
[424433847,1780885832000,-150.0,0.00010699,2]
[424433849,1780885832000,-250.0,0.00010761,2]
[424433842,1780885832000,-235.38740669,9.9e-05,2]
[424433839,1780885832000,-68.56921397,9.9e-05,2]
[424433843,1780885832000,-257.87311854,9.9e-05,2]
[424433840,1780885832000,-357.37649282,9.9e-05,2]
[424433841,1780885832000,-466.63476728,9.9e-05,2]
[424433838,1780885832000,-251.39995321,9.9e-05,2]
[424433836,1780885832000,-266.0,9.897e-05,2]
[424433837,1780885832000,-242.93324161,9.9e-05,2]
[424433835,1780885832000,-172.0395728,9.8e-05,2]
[424433834,1780885832000,-327.9604272,9.8e-05,2]
[424433854,1780885832000,-175.37,0.00010935,2]
[424433862,1780885832000,-272.02634928,0.00011369,2]
[424433845,1780885832000,-161.29222544,0.00010469,2]
[424433861,1780885832000,-246.24443473,0.00011269,2]
[424433865,1780885832000,-1100.0,0.000116,4]
[424433899,1780885832000,-5449.0,0.00012055,2]
[424433895,1780885832000,-500.0,0.00012049,2]
[424433897,1780885832000,-237280.7495408,0.0001205,2]
[424433896,1780885832000,-500.0,0.00012049,2]
[424433898,1780885832000,-26158.0,0.00012055,2]
[424433894,1780885832000,-500.0,0.00012049,2]
[424433893,1780885832000,-500.0,0.00012049,2]
[424433892,1780885832000,-500.0,0.00012049,2]
[424433888,1780885832000,-500.0,0.00012049,2]
[424433887,1780885832000,-500.0,0.00012049,2]
[424433882,1780885832000,-631.23158629,0.00012004,2]
[424433889,1780885832000,-500.0,0.00012049,2]
[424433884,1780885832000,-500.0,0.00012049,2]
[424433891,1780885832000,-500.0,0.00012049,2]
[424433886,1780885832000,-500.0,0.00012049,2]
[424433885,1780885832000,-500.0,0.00012049,2]
[424433863,1780885832000,-157.15,0.000115,2]
[424433890,1780885832000,-504.51022516,0.00012049,2]
[424433871,1780885832000,-4600.0,0.000119,4]
[424433873,1780885832000,-59994.49504368,0.00011951,2]
[424433874,1780885832000,-2000.0,0.00011969,2]
[424433872,1780885832000,-159.88927105,0.0001193,2]
[424433875,1780885832000,-885.0583,0.00011969,2]
[424433866,1780885832000,-2300.0,0.000117,4]
[424433878,1780885832000,-665.21914619,0.00011971,2]
[424433877,1780885832000,-1001.61222581,0.0001197,2]
[424433879,1780885832000,-176.00672804,0.00011971,2]
[424433880,1780885832000,-4600.29315846,0.00011971,2]
[424433881,1780885832000,-325.09695802,0.00011971,2]
[424433883,1780885832000,-268.27689042,0.00012009,2]
[424433876,1780885832000,-729.97641295,0.00011969,2]
[424433917,1780885833000,-4948.9082,0.00012069,2]
[424433912,1780885833000,-573.86938855,0.00012068,2]
[424433909,1780885833000,-500.0,0.00012068,2]
[424433908,1780885833000,-500.0,0.00012068,2]
[424433907,1780885833000,-500.0,0.00012068,2]
[424433900,1780885833000,-6414.0,0.00012055,2]
[424433904,1780885833000,-500.0,0.00012068,2]
[424433902,1780885833000,-500.0,0.00012068,2]
[424433901,1780885833000,-500.0,0.00012068,2]
[424433903,1780885833000,-500.0,0.00012068,2]
[424433913,1780885833000,-500.0,0.00012068,2]
[424433905,1780885833000,-500.0,0.00012068,2]
[424433906,1780885833000,-500.0,0.00012068,2]
[424433921,1780885833000,-651.72622502,0.00012069,2]
[424433916,1780885833000,-2000.0,0.00012069,2]
[424433915,1780885833000,-163.62,0.00012069,2]
[424433925,1780885833000,-4804.75591113,0.00012069,2]
[424433924,1780885833000,-1016.35862345,0.00012069,2]
[424433923,1780885833000,-326.80947795,0.00012069,2]
[424433920,1780885833000,-172444.75626813,0.00012069,2]
[424433922,1780885833000,-2812.48905941,0.00012069,2]
[424433919,1780885833000,-72755.11177964,0.00012069,2]
[424433926,1780885833000,-646.62018074,0.00012069,2]
[424433914,1780885833000,-297.14844976,0.00012068,2]
[424433910,1780885833000,-500.0,0.00012068,2]
[424433911,1780885833000,-204.22436526,0.00012068,2]
[424433918,1780885833000,-5609.43726394,0.00012069,2]
[424433942,1780885838000,-299.99,0.00012087,2]
[424433961,1780885838000,-156.63845064,0.00012169,2]
[424433950,1780885838000,-500.0,0.00012103,2]
[424433948,1780885838000,-500.0,0.00012103,2]
[424433940,1780885838000,-999.99,0.00012087,2]
[424433943,1780885838000,-9999.99,0.00012087,2]
[424433947,1780885838000,-13462.7,0.00012087,2]
[424433944,1780885838000,-24999.99,0.00012087,2]
[424433941,1780885838000,-3437.51,0.00012087,2]
[424433937,1780885838000,-9999.99,0.00012087,2]
[424433939,1780885838000,-744.19,0.00012087,2]
[424433936,1780885838000,-9999.99,0.00012087,2]
[424433946,1780885838000,-9999.99,0.00012087,2]
[424433938,1780885838000,-150.99,0.00012087,2]
[424433935,1780885838000,-638.04,0.00012071,2]
[424433933,1780885838000,-1896.65637071,0.00012059,2]
[424433932,1780885838000,-38545.4748395,0.00011871,2]
[424433934,1780885838000,-2011441.02671059,0.00012069,2]
[424433931,1780885838000,-6342.65253374,0.00011871,2]
[424433967,1780885838000,-500.0,0.00012247,2]
[424433945,1780885838000,-4999.99,0.00012087,2]
[424433969,1780885838000,-7497.67734448,0.00012268,2]
[424433951,1780885838000,-178.4580698,0.00012104,2]
[424433965,1780885838000,-1449.71,0.00012236,2]
[424433963,1780885838000,-153.77004869,0.00012169,2]
[424434003,1780885838000,-186.44164696,0.0001237,2]
[424434001,1780885838000,-150.66000834,0.0001237,2]
[424433999,1780885838000,-176.98636435,0.0001237,2]
[424433984,1780885838000,-500.0,0.00012359,2]
[424433989,1780885838000,-372.16799727,0.0001237,2]
[424433982,1780885838000,-151.0,0.00012357,2]
[424433993,1780885838000,-181.58376077,0.0001237,2]
[424433995,1780885838000,-441.8800898,0.0001237,2]
[424433991,1780885838000,-373.07224438,0.0001237,2]
[424433975,1780885838000,-154.13,0.00012329,2]
[424433980,1780885838000,-638.04,0.00012351,2]
[424433997,1780885838000,-150.56478136,0.0001237,2]
[424433987,1780885838000,-345.29965881,0.0001237,2]
[424433978,1780885838000,-171.58,0.00012329,2]
[424433971,1780885838000,-59994.49504364,0.00012279,2]
[424433958,1780885838000,-92672.6709644,0.00012104,2]
[424433956,1780885838000,-151.3121716,0.00012104,2]
[424433954,1780885838000,-522927.8590507,0.00012104,2]
[424433959,1780885838000,-151.0,0.00012166,2]
[424433952,1780885838000,-80890.3487682,0.00012104,2]
[424433973,1780885838000,-500.0,0.00012323,2]
[424433949,1780885838000,-500.0,0.00012103,2]
[424434070,1780885839000,-325.09695801,0.00013436,2]
[424434072,1780885839000,-631.23158625,0.00013452,2]
[424434069,1780885839000,-4600.29315846,0.00013436,2]
[424434079,1780885839000,-169.83658506,0.00013488,2]
[424434078,1780885839000,-151.93797256,0.00013488,2]
[424434063,1780885839000,-379.69632708,0.00013303,7]
[424434067,1780885839000,-665.21914617,0.00013436,2]
[424434066,1780885839000,-348.081856,0.00013424,2]
[424434077,1780885839000,-150.18105911,0.00013488,2]
[424434061,1780885839000,-379.69632708,0.00013303,7]
[424434060,1780885839000,-59994.49504364,0.00013262,2]
[424434073,1780885839000,-150.0,0.00013488,2]
[424434068,1780885839000,-176.00672802,0.00013436,2]
[424434076,1780885839000,-150.25705167,0.00013488,2]
[424434093,1780885839000,-500.0,0.00013698,2]
[424434071,1780885839000,-315.006738,0.00013451,2]
[424434075,1780885839000,-150.0,0.00013488,2]
[424434080,1780885839000,-150.0930434,0.00013488,2]
[424434083,1780885839000,-150.0,0.00013488,2]
[424434082,1780885839000,-150.0,0.00013488,2]
[424434081,1780885839000,-203.80794025,0.00013488,2]
[424434092,1780885839000,-150.0,0.00013675,2]
[424434087,1780885839000,-59994.49504364,0.00013589,2]
[424434091,1780885839000,-150.0,0.00013668,2]
[424434058,1780885839000,-535.25238516,0.00013247,2]
[424434084,1780885839000,-300.0,0.00013508,2]
[424434088,1780885839000,-1449.71,0.00013595,2]
[424434090,1780885839000,-168.3,0.00013609,2]
[424434085,1780885839000,-150.0,0.00013548,2]
[424434074,1780885839000,-238.47314681,0.00013488,2]
[424434059,1780885839000,-521.89,0.0001326,2]
[424434046,1780885839000,-433.0,0.00012871,2]
[424434062,1780885839000,-379.69632708,0.00013303,7]
[424434005,1780885839000,-535.25238516,0.0001237,2]
[424434009,1780885839000,-167.19384099,0.00012507,2]
[424434007,1780885839000,-631.23158625,0.00012487,2]
[424434011,1780885839000,-253.1308847,0.00012564,7]
[424434015,1780885839000,-253.1308847,0.00012564,7]
[424434021,1780885839000,-59994.49504364,0.00012606,2]
[424434019,1780885839000,-500.0,0.00012597,2]
[424434089,1780885839000,-150.0,0.00013608,2]
[424434013,1780885839000,-253.13088472,0.00012564,7]
[424434017,1780885839000,-1896.65637071,0.00012596,2]
[424434023,1780885839000,-168.3,0.0001261,2]
[424434025,1780885839000,-227.812987,0.00012675,2]
[424434027,1780885839000,-212.652176,0.00012675,2]
[424434029,1780885839000,-228.645626,0.00012675,2]
[424434057,1780885839000,-270.027138,0.00013218,2]
[424434031,1780885839000,-293.665178,0.00012739,2]
[424434033,1780885839000,-626.48,0.00012757,2]
[424434035,1780885839000,-1318.67,0.00012757,2]
[424434039,1780885839000,-567.0,0.00012822,2]
[424434042,1780885839000,-166.28,0.00012871,2]
[424434044,1780885839000,-500.0,0.00012871,2]
[424434049,1780885839000,-59994.49504364,0.00012934,2]
[424434051,1780885839000,-631.23158625,0.00012969,2]
[424434048,1780885839000,-5800.0,0.000129,4]
[424434054,1780885839000,-953.19734941,0.00013,5]
[424434065,1780885839000,-181.58376077,0.00013422,2]
[424434064,1780885839000,-407.382226,0.00013384,2]
[424434055,1780885839000,-168.3,0.0001311,2]
[424434053,1780885839000,-801.66,0.00012987,2]
[424434056,1780885839000,-503.44891408,0.00013145,2]
[424434037,1780885839000,-434.28,0.00012757,2]
[424434086,1780885839000,-150.0,0.00013581,2]
[424434149,1780885839000,-500.0,0.00013698,2]
[424434105,1780885839000,-500.0,0.00013698,2]
[424434133,1780885839000,-788.08,0.00013698,2]
[424434129,1780885839000,-788.08,0.00013698,2]
[424434134,1780885839000,-788.08,0.00013698,2]
[424434130,1780885839000,-788.08,0.00013698,2]
[424434131,1780885839000,-788.08,0.00013698,2]
[424434135,1780885839000,-788.08,0.00013698,2]
[424434138,1780885839000,-500.0,0.00013698,2]
[424434137,1780885839000,-788.08,0.00013698,2]
[424434136,1780885839000,-788.08,0.00013698,2]
[424434145,1780885839000,-500.0,0.00013698,2]
[424434140,1780885839000,-500.0,0.00013698,2]
[424434139,1780885839000,-500.0,0.00013698,2]
[424434141,1780885839000,-500.0,0.00013698,2]
[424434142,1780885839000,-500.0,0.00013698,2]
[424434123,1780885839000,-500.0,0.00013698,2]
[424434146,1780885839000,-500.0,0.00013698,2]
[424434144,1780885839000,-500.0,0.00013698,2]
[424434151,1780885839000,-500.0,0.00013698,2]
[424434159,1780885839000,-152.46551428,0.00013698,2]
[424434150,1780885839000,-500.0,0.00013698,2]
[424434152,1780885839000,-264.69050335,0.00013698,2]
[424434156,1780885839000,-500.0,0.00013698,2]
[424434153,1780885839000,-500.0,0.00013698,2]
[424434154,1780885839000,-500.0,0.00013698,2]
[424434157,1780885839000,-500.0,0.00013698,2]
[424434147,1780885839000,-512.99574311,0.00013698,2]
[424434158,1780885839000,-500.0,0.00013698,2]
[424434155,1780885839000,-500.0,0.00013698,2]
[424434160,1780885839000,-500.0,0.00013698,2]
[424434095,1780885839000,-500.0,0.00013698,2]
[424434143,1780885839000,-500.0,0.00013698,2]
[424434125,1780885839000,-500.0,0.00013698,2]
[424434148,1780885839000,-500.0,0.00013698,2]
[424434126,1780885839000,-500.0,0.00013698,2]
[424434132,1780885839000,-788.08,0.00013698,2]
[424434106,1780885839000,-500.0,0.00013698,2]
[424434107,1780885839000,-240.98630425,0.00013698,2]
[424434099,1780885839000,-500.0,0.00013698,2]
[424434101,1780885839000,-500.0,0.00013698,2]
[424434096,1780885839000,-500.0,0.00013698,2]
[424434097,1780885839000,-500.0,0.00013698,2]
[424434104,1780885839000,-500.0,0.00013698,2]
[424434100,1780885839000,-513.87360042,0.00013698,2]
[424434098,1780885839000,-500.0,0.00013698,2]
[424434102,1780885839000,-500.0,0.00013698,2]
[424434103,1780885839000,-500.0,0.00013698,2]
[424434108,1780885839000,-500.0,0.00013698,2]
[424434110,1780885839000,-500.0,0.00013698,2]
[424434114,1780885839000,-500.0,0.00013698,2]
[424434094,1780885839000,-507.15165324,0.00013698,2]
[424434111,1780885839000,-500.0,0.00013698,2]
[424434113,1780885839000,-500.0,0.00013698,2]
[424434128,1780885839000,-788.08,0.00013698,2]
[424434124,1780885839000,-500.0,0.00013698,2]
[424434122,1780885839000,-500.0,0.00013698,2]
[424434121,1780885839000,-500.0,0.00013698,2]
[424434109,1780885839000,-500.0,0.00013698,2]
[424434127,1780885839000,-505.42825574,0.00013698,2]
[424434120,1780885839000,-238.00578641,0.00013698,2]
[424434118,1780885839000,-225.62301577,0.00013698,2]
[424434112,1780885839000,-500.0,0.00013698,2]
[424434117,1780885839000,-500.0,0.00013698,2]
[424434115,1780885839000,-500.0,0.00013698,2]
[424434119,1780885839000,-500.0,0.00013698,2]
[424434116,1780885839000,-500.0,0.00013698,2]
[424434200,1780885840000,-500.0,0.00013698,2]
[424434197,1780885840000,-500.0,0.00013698,2]
[424434202,1780885840000,-500.0,0.00013698,2]
[424434203,1780885840000,-523.25020934,0.00013698,2]
[424434198,1780885840000,-500.0,0.00013698,2]
[424434199,1780885840000,-500.0,0.00013698,2]
[424434201,1780885840000,-500.0,0.00013698,2]
[424434193,1780885840000,-500.0,0.00013698,2]
[424434195,1780885840000,-311.99555842,0.00013698,2]
[424434207,1780885840000,-500.0,0.00013698,2]
[424434196,1780885840000,-500.0,0.00013698,2]
[424434204,1780885840000,-500.0,0.00013698,2]
[424434194,1780885840000,-500.0,0.00013698,2]
[424434214,1780885840000,-500.0,0.00013698,2]
[424434217,1780885840000,-500.0,0.00013698,2]
[424434209,1780885840000,-500.0,0.00013698,2]
[424434208,1780885840000,-500.0,0.00013698,2]
[424434215,1780885840000,-500.0,0.00013698,2]
[424434216,1780885840000,-500.0,0.00013698,2]
[424434212,1780885840000,-500.0,0.00013698,2]
[424434213,1780885840000,-500.0,0.00013698,2]
[424434210,1780885840000,-526.36523084,0.00013698,2]
[424434211,1780885840000,-500.0,0.00013698,2]
[424434206,1780885840000,-500.0,0.00013698,2]
[424434218,1780885840000,-500.0,0.00013698,2]
[424434192,1780885840000,-500.0,0.00013698,2]
[424434219,1780885840000,-500.0,0.00013698,2]
[424434205,1780885840000,-500.0,0.00013698,2]
[424434191,1780885840000,-500.0,0.00013698,2]
[424434176,1780885840000,-500.0,0.00013698,2]
[424434189,1780885840000,-500.0,0.00013698,2]
[424434220,1780885840000,-500.0,0.00013698,2]
[424434166,1780885840000,-400.14453876,0.00013698,2]
[424434171,1780885840000,-500.0,0.00013698,2]
[424434172,1780885840000,-500.0,0.00013698,2]
[424434162,1780885840000,-500.0,0.00013698,2]
[424434169,1780885840000,-500.0,0.00013698,2]
[424434165,1780885840000,-500.0,0.00013698,2]
[424434170,1780885840000,-512.59450446,0.00013698,2]
[424434164,1780885840000,-500.0,0.00013698,2]
[424434167,1780885840000,-500.65266857,0.00013698,2]
[424434161,1780885840000,-500.0,0.00013698,2]
[424434173,1780885840000,-500.0,0.00013698,2]
[424434168,1780885840000,-500.0,0.00013698,2]
[424434175,1780885840000,-500.0,0.00013698,2]
[424434174,1780885840000,-500.0,0.00013698,2]
[424434187,1780885840000,-500.0,0.00013698,2]
[424434185,1780885840000,-500.0,0.00013698,2]
[424434186,1780885840000,-514.86964047,0.00013698,2]
[424434177,1780885840000,-503.93302661,0.00013698,2]
[424434179,1780885840000,-500.0,0.00013698,2]
[424434183,1780885840000,-500.0,0.00013698,2]
[424434180,1780885840000,-500.0,0.00013698,2]
[424434182,1780885840000,-500.0,0.00013698,2]
[424434181,1780885840000,-500.0,0.00013698,2]
[424434178,1780885840000,-500.0,0.00013698,2]
[424434184,1780885840000,-500.0,0.00013698,2]
[424434188,1780885840000,-500.0,0.00013698,2]